Cogmind - Beta 10.1 @@@ ROGUE MODE // 2020.10.28 @ 17:09:45 Player: Atherys Result: Destroyed by L-31 Rogue with Katana Performance ------------- Evolutions (0) 0 Regions Visited (4) 800 Robots Destroyed (1) 5 Value Destroyed (16) 16 Prototype IDs (0) 0 Alien Tech Used (0) 0 Bonus (339) 339 TOTAL SCORE: 1160 Bonus ------- Follower Combat Kills 39 Aligned with FarCom 300 Cogmind --------- Core Integrity 0/250 Matter 294/300 Energy 250/250 System Corruption 0% Temperature Cool (0) Movement Core (650) Ox12 Location -9/Mines Parts ------- > --- POWER (1) -------- Ion Engine > --- PROPULSION (2) --- (None) > --- UTILITY (2) ------ High-capacity Storage Unit > --- WEAPON (2) ------- (None) > --- INVENTORY (12) --- Nuclear Core Fission Core Fission Core Small Storage Unit Improved Targeting Computer Datajack Peak State ------------ > --- POWER ------------ Ion Engine > --- PROPULSION ------- Aluminum Leg Aluminum Leg > --- UTILITY ---------- High-capacity Storage Unit Terrain Scan Processor > --- WEAPON ----------- (None) > --- INVENTORY -------- Nuclear Core Fission Core Fission Core Small Storage Unit Improved Targeting Computer Datajack Proton Bomb Trap [Rating: 8] Favorites ----------- Power Ion Engine Engine Ion Engine Propulsion Aluminum Leg Leg Aluminum Leg Wheel Compact Wheel Utility Terrain Scan Processor Device Terrain Scanner Storage High-capacity Storage Unit Processor Terrain Scan Processor Weapon Medium Laser Energy Gun Medium Laser Build | -11 -10 -10 -10 -9 ------- Run | Scr Mat Min Exi Min Slots Evolved . | . . . . . Power . | . . . . . Propulsion . | . . . . . Utility . | . . . . . Weapon . | . . . . . Parts Attached 12 | 5 . 5 2 . Power 2 | . . 1 1 . Engine 2 | . . 1 1 . Core . | . . . . . Reactor . | . . . . . Propulsion 4 | 2 . 2 . . Treads . | . . . . . Leg 2 | . . 2 . . Wheel 2 | 2 . . . . Hover . | . . . . . Flight . | . . . . . Utility 4 | 1 . 2 1 . Device 1 | . . 1 . . Storage 2 | 1 . . 1 . Processor 1 | . . 1 . . Hackware . | . . . . . Protection . | . . . . . Artifact . | . . . . . Weapon 2 | 2 . . . . Energy Gun 2 | 2 . . . . Energy Cannon . | . . . . . Ballistic Gun . | . . . . . Ballistic Cannon . | . . . . . Launcher . | . . . . . Special Weapon . | . . . . . Impact Weapon . | . . . . . Slashing Weapon . | . . . . . Piercing Weapon . | . . . . . Special Melee Weapon . | . . . . . Unidentified Prototypes . | . . . . . Parts Lost 7 | . . 5 . 2 Power . | . . . . . Propulsion 4 | . . 2 . 2 Utility 1 | . . 1 . . Weapon 2 | . . 2 . . Highest Loss Streak 3 | . . 3 . 2 Average Slot Usage (%) 70 | . 71 69 71 67 Engine 11 | . . 4 14 14 Leg 21 | . . 8 28 27 Wheel 5 | . 28 16 . . Device 1 | . . 7 . . Storage 14 | . 14 14 14 14 Processor 10 | . . 2 14 12 Energy Gun 4 | . 28 15 . . Naked Turns . | . . . . . Heaviest Build 37 | 8 8 9 37 37 Greatest Support 26 | 26 26 26 20 20 Greatest Overweight (x) 12 | 1 . 1 1 12 Average Overweight (x) . | . . . . 1 Largest Inventory Capacity 12 | 6 6 6 12 12 Average Capacity 9 | 5 6 6 10 12 Most Carried 7 | . 1 2 5 7 Average Carried 3 | . . 1 4 5 Final Capacity 12 | 6 6 6 12 12 Final Carried 6 | . 1 1 5 6 Class Distribution -------------------- 73% | Scavenger-Mutant 26% | Mutant Dominant Class ---------------- Mutant | -10/Materials Mutant | -10/Mines Scavenger-Mutant | -10/Exiles Scavenger-Mutant | -9/Mines Resources | -11 -10 -10 -10 -9 ----------- Run | Scr Mat Min Exi Min Matter Collected 289 | 78 172 12 . 27 Remotely . | . . . . . Salvage Created 14 | . 14 . . . Parts 1 | . 1 . . . Haulers Intercepted . | . . . . . Recyclers Shooed . | . . . . . Parts Field Recycled . | . . . . . Retrieved Matter . | . . . . . Parts Self-Destructed . | . . . . . Prevented . | . . . . . Kills | -11 -10 -10 -10 -9 ------- Run | Scr Mat Min Exi Min Combat Hostiles Destroyed . | . . . . . Classes Destroyed 1 | . 1 . . . Operator 1 | . 1 . . . Best Kill Streak 1 | . 1 . . . Combat Bots Only . | . . . . . Max Kills in Single Turn 1 | . 1 . . . Gunslinging . | . . . . . Exploded . | . . . . . Melee . | . . . . . Uniques/NPCs Destroyed . | . . . . . Combat | -11 -10 -10 -10 -9 -------- Run | Scr Mat Min Exi Min Damage Taken 624 | . 37 341 . 246 Core 253 | . 11 135 . 107 Absorbed by Shields . | . . . . . Core Remaining (%) 100 | 100 . . . . Volleys Fired 7 | . 2 5 . . Largest 2 | . 2 2 . . Hottest 100 | . 100 100 . . Shots Fired 10 | . 4 6 . . Gun 10 | . 4 6 . . Cannon . | . . . . . Launcher . | . . . . . Special . | . . . . . Kinetic . | . . . . . Thermal 10 | . 4 6 . . Explosive . | . . . . . Electromagnetic . | . . . . . Robot Hit Streak 3 | . 3 1 . . Robot Miss Streak 3 | . 1 3 . . Penetration Max . | . . . . . Secondary Targets . | . . . . . Shots Hit Robots 4 | . 3 1 . . Core Hits 4 | . 2 2 . . Critical Hits . | . . . . . Critical Kills . | . . . . . Critical Parts Destroyed . | . . . . . Melee Attacks . | . . . . . Impact . | . . . . . Slashing . | . . . . . Piercing . | . . . . . Sneak Attacks . | . . . . . Combat Hostiles . | . . . . . Follow-up Attacks . | . . . . . Damage Inflicted 74 | . 38 35 . 1 Guns 63 | . 38 25 . . Cannons . | . . . . . Explosions . | . . . . . Melee . | . . . . . Ramming 11 | . . 10 . 1 Kinetic . | . . . . . Thermal 63 | . 38 25 . . Explosive . | . . . . . Electromagnetic . | . . . . . Impact . | . . . . . Slashing . | . . . . . Piercing . | . . . . . Highest Corruption . | . . . . . Average Corruption . | . . . . . Corruption Purged . | . . . . . Overload Shots . | . . . . . Overflow Damage . | . . . . . Projectiles . | . . . . . Explosions . | . . . . . Melee . | . . . . . Knockbacks . | . . . . . Impact . | . . . . . Kinetic . | . . . . . Secondary . | . . . . . Self-Inflicted Damage 4 | . . 4 . . Shots . | . . . . . Rammed 5 | . . 4 . 1 Targets Rammed 5 | . . 4 . 1 Kicked . | . . . . . Crushed . | . . . . . Highest Temperature 48 | . 48 24 . . Average Temperature 23 | . 27 16 . . Received Heat Transfer 54 | . 6 . . 48 Siege Activations . | . . . . . Robots Corrupted . | . . . . . Combat Hostiles . | . . . . . Parts Fried . | . . . . . Impact Corruptions . | . . . . . Robots Melted . | . . . . . Combat Hostiles . | . . . . . Parts Melted . | . . . . . Heat Transferred 185 | . 111 74 . . Parts Sabotaged . | . . . . . Parts Stolen . | . . . . . Parts Stripped . | . . . . . Power Chain Reactions . | . . . . . Missiles Intercepted . | . . . . . Alert | -11 -10 -10 -10 -9 ------- Run | Scr Mat Min Exi Min Peak Influence 35 | . 35 32 . . Initial 13 | . . 13 . . Average 12 | . 21 17 . . Maximum Alert Level . | . . . . . Low Security (%) 100 | 100 100 100 . 100 Level 1 . | . . . . . Level 2 . | . . . . . Level 3 . | . . . . . Level 4 . | . . . . . Level 5 . | . . . . . High Security . | . . . . . Max Security . | . . . . . Squads Dispatched 1 | . 1 . . . Investigation . | . . . . . Extermination . | . . . . . Reinforcement 1 | . 1 . . . Assault . | . . . . . Garrison . | . . . . . Intercept . | . . . . . Construction Impeded . | . . . . . Haulers Reinforced . | . . . . . Stealth | -11 -10 -10 -10 -9 --------- Run | Scr Mat Min Exi Min Distress Signals . | . . . . . Communications Jammed . | . . . . . Distress Signals . | . . . . . Times Spotted 14 | . 5 7 . 2 Peak Tracking Total 5 | . 3 5 . 2 Tactical Retreats 2 | . 1 1 . . Traps | -11 -10 -10 -10 -9 ------- Run | Scr Mat Min Exi Min Traps Triggered 1 | . 1 . . . Indirectly . | . . . . . Trap Hack Attempts . | . . . . . Triggered . | . . . . . Disarmed . | . . . . . Reprogrammed . | . . . . . Reused . | . . . . . Traps Extracted . | . . . . . Installed . | . . . . . Triggered . | . . . . . Machines | -11 -10 -10 -10 -9 ---------- Run | Scr Mat Min Exi Min Machines Disabled . | . . . . . Max in Single Turn . | . . . . . Machines Sabotaged . | . . . . . Garrisons Compromised . | . . . . . Overloaded Fab Kills . | . . . . . Fab Network Shutdowns . | . . . . . Hacking | -11 -10 -10 -10 -9 --------- Run | Scr Mat Min Exi Min Machines Accessed 1 | . . . 1 . Terminals . | . . . . . Fabricators . | . . . . . Repair Stations . | . . . . . Recycling Units . | . . . . . Scanalyzers . | . . . . . Garrison Access . | . . . . . Total Hacks 1 | . . . 1 . Successful 1 | . . . 1 . Failed . | . . . . . Catastrophic . | . . . . . Database Lockouts . | . . . . . Manual 1 | . . . 1 . Terminals . | . . . . . Fabricators . | . . . . . Repair Stations . | . . . . . Recycling Units . | . . . . . Scanalyzers . | . . . . . Garrison Access . | . . . . . Terminal Hacks 1 | . . . 1 . Record 1 | . . . 1 . Fabricator Hacks . | . . . . . Repair Station Hacks . | . . . . . Recycling Unit Hacks . | . . . . . Scanalyzer . | . . . . . Garrison Access Hacks . | . . . . . Unauthorized Hacks . | . . . . . Terminals . | . . . . . Fabricators . | . . . . . Repair Stations . | . . . . . Recycling Units . | . . . . . Scanalyzers . | . . . . . Garrison Access . | . . . . . Data Cores Recovered . | . . . . . Used . | . . . . . Hacking Detections . | . . . . . Full Trace Events . | . . . . . Feedback Events . | . . . . . Feedback Blocked . | . . . . . Robot Schematics Acquired . | . . . . . Robots Built . | . . . . . Matter . | . . . . . Time . | . . . . . Total Robot Build Rating . | . . . . . Part Schematics Acquired . | . . . . . Parts Built . | . . . . . Matter . | . . . . . Time . | . . . . . Total Part Build Rating . | . . . . . Parts Repaired . | . . . . . Time . | . . . . . Parts Recycled . | . . . . . Recycled Matter . | . . . . . Retrieved Matter . | . . . . . Retrieved Components . | . . . . . Parts Scanalyzed . | . . . . . Part Schematics Acquired . | . . . . . Parts Damaged . | . . . . . Bothacking | -11 -10 -10 -10 -9 ------------ Run | Scr Mat Min Exi Min Used RIF Installer . | . . . . . Robots Hacked . | . . . . . Non-combat . | . . . . . Combat . | . . . . . Robot Hacks Applied . | . . . . . Relay Couplers Released . | . . . . . Robots Rewired . | . . . . . Allies Hacked . | . . . . . Hacks Repelled . | . . . . . Allies | -11 -10 -10 -10 -9 -------- Run | Scr Mat Min Exi Min Total Allies 3 | . . 3 . . Largest Group 3 | . . 3 1 1 Highest-Rated Group 40 | . . 40 16 16 Highest-Rated Ally 16 | . . 16 16 16 Total Orders . | . . . . . Ally Attacks 32 | . . 30 . 2 Total Damage 399 | . . 367 . 32 Kills 7 | . . 7 . . Allies Corrupted . | . . . . . Allies Melted . | . . . . . Intel | -11 -10 -10 -10 -9 ------- Run | Scr Mat Min Exi Min Robot Analysis Total . | . . . . . Derelict Logs Recovered 1 | . . 1 . . Drone Launches . | . . . . . Drone Recoveries . | . . . . . Exploration | -11 -10 -10 -10 -9 ------------- Run | Scr Mat Min Exi Min Turns Passed 1388 | 33 68 309 838 140 Spaces Moved 1035 | 31 68 271 586 79 Core 13 | 9 . 3 . 1 Treads . | . . . . . Legs 738 | . . 74 586 78 Wheels 284 | 22 68 194 . . Hover . | . . . . . Flight . | . . . . . Fastest Speed 50 | 50 90 90 120 150 Average Speed 127 | 84 90 99 142 160 Slowest Speed 650 | 100 90 120 150 650 Overloaded Moves . | . . . . . Propulsion Burnouts . | . . . . . Robots Hopped . | . . . . . Cave-ins Triggered . | . . . . . Exploration Rate (%) 38 | 3 24 48 91 24 Regions Visited 4 Branch Regions 3 Pre-discovered Areas . | . . . . . Known Exits Taken . | . . . . . Unknown Exits Taken 4 | 1 1 1 1 . Scrap Searched 2 | . . 1 . 1 Spaces Dug . | . . . . . Terrain Destroyed . | . . . . . Melee . | . . . . . Projectile . | . . . . . AOE . | . . . . . Terrain Rammed . | . . . . . Walls Destroyed . | . . . . . Machines Disabled . | . . . . . Actions | -11 -10 -10 -10 -9 --------- Run | Scr Mat Min Exi Min Total 1092 | 35 70 303 591 93 Wait 26 | . . 17 . 9 Move 1031 | 30 67 270 585 79 Hop . | . . . . . Pick Up 7 | . 1 1 3 2 Fast Attach 10 | 5 . 4 1 . Attach 1 | . . 1 . . Detach 1 | . . . . 1 Swap 1 | . . . 1 . Drop 2 | . . . 1 1 Fire 7 | . 2 5 . . Melee . | . . . . . Ram 4 | . . 4 . . Kick 1 | . . . . 1 Crush . | . . . . . Escape Stasis . | . . . . . Rewire 1 | . . 1 . . Trap . | . . . . . Miscellaneous . | . . . . . Route ------- -11/Scrapyard -10/Materials -10/Mines (discovered 3 exits: *Mat x2 / *Exi) -10/Exiles (discovered 2 exits: [*Min x2]) -9/Mines History --------- Turn | Location | Event 21 | -11/Scrapyard | Discovered new exit (range 16) 34 | -11/Scrapyard | Entered Materials 88 | -10/Materials | Discovered new exit (range 13) 102 | -10/Materials | Entered Mines 118 | -10/Mines | Identified exit to Materials 156 | -10/Mines | Discovered exit to Materials (range 6) 217 | -10/Mines | Assembled infested the area 256 | -10/Mines | Assisted by bots powering up and referring to "LRC-V3" 307 | -10/Mines | Build established: Mutant 311 | -10/Mines | Core integrity fell below 50% 339 | -10/Mines | Lost 3 parts (1n1u1w) 406 | -10/Mines | Deemed a non-threat by the Exiles lab entrance 406 | -10/Mines | Discovered new exit (range 5) 411 | -10/Mines | Entered Exiles 411 | -10/Exiles | Accompanied by 1 ally 454 | -10/Exiles | Discovered new exit (range 14) 486 | -10/Exiles | Met 8R-AWN 503 | -10/Exiles | Met EX-HEX 629 | -10/Exiles | Met EX-DEC 661 | -10/Exiles | Build established: Scavenger-Mutant 687 | -10/Exiles | Visited The Gauntlet 911 | -10/Exiles | Met EX-BIN 952 | -10/Exiles | Aligned with FarCom system 953 | -10/Exiles | Given EX-Vault access code 1231 | -10/Exiles | Discovered new exit (range 14) 1249 | -10/Exiles | Entered Mines 1249 | -9/Mines | Accompanied by 1 ally 1256 | -9/Mines | Met a Derelict bent on vengeance 1363 | -9/Mines | Found a hidden stash of uninstalled traps 1388 | -9/Mines | Core integrity fell below 20% 1389 | -9/Mines | Destroyed by L-31 Rogue with Katana Last Messages --------------- 01016_ Connecting with HEX's Terminal... 01030_ Connecting with EX-Vault Access... 01136_ Connecting with EX-Message Board... 01231_ EXIT=FOUND LOCATION=UNKNOWN GOAL=ESCAPE 01249_ Receiving FarCom transmissions... 01293_ Searching scrap... 01293_ Found EM Pulse Gun. 01293_ Found VTOL Module. 01293_ Found Imp. Targeting Computer. 01293_ Found 27 Matter. 01294_ Acquired 27 matter. 01296_ Acquired Imp. Targeting Computer. 01315_ Slammed into K-01 Serf. 01363_ A stash of uninstalled traps is collected here! 01366_ Acquired Proton Bomb Trap. 01367_ Discarded Terrain Scan Processor. 01370_ Dropped Proton Bomb Trap. 01371_ Aluminum Leg destroyed. Map ----- +----------------------------------------------------+ | ?????????????????????????????????????????????????? | | ?????????????????????????????????????????????????? | | ?????????????????????????????????????????????????? | | ?????????????????????????????????????????????????? | | ?????????????????????????????????????????????????? | | ?????????????????????????????????????????????????? | | ?????????????????????????????????????????????????? | | ?????????????????????????????????????????????????? | | ?????????????????????????????????????????????????? | | ?????????????????????????????????????????????????? | | ?????????????????????????????????????????????????? | | ?????????????????????????????????????????????????? | | ?????????????????????????????????????????????????? | | ?????????????????????????????????????????????????? | | ?????????????????????????????????????????????????? | | ?????????????????????????????????????????????????? | | ?????????????????????????????????????????????????? | | ?????????????????????????????????????????????????? | | ?????????????????????????????????????????????????? | | ??????????????????????????????#??????????????????? | | ????????????????????????????? #??????????????????? | | ?????????????#?????????????? #??????????????????? | | ????????????? ##??????????? #??????????????????? | | ????????????? ##?????##### #???????????????????? | | ??????????# ##????# #????????????????????? | | ???????????# ###### @ #????????????????????? | | ????????????# l####????????????????????? | | ???????####### g #???????????????????????? | | ???????# # ## ###???????????????????????? | | ##?????# #???# ###???????????????????????? | | ##????# ## ### ## ####????????????????????? | | ###### ## ### & &#####????????????????? | | ## ###### & ##???????????????? | | " ### #???### && #???????????????? | | " #######?## #?????## ##???????????????? | | " #????????# #??????## ##???????????????? | | ##????????# ##???????## #???????#???????? | | #?????????## ##????????## #?????? #???????? | | #?????????## ######????# #?????? #???????? | | #?????????# [=#????## ##????? ????????? | | #???????# ##### #?????## #?????? ????????? | | ##??????# ###???# ######?# #?????" ?????????? | | ###??????# #??????# #?# ###??? ??????????? | | ????????# #???????###### #?# #?? #??????????? | | ???????# ?????????????# #?### ### #??????????? | | ???????# ??????????????# ##### #??????????? | | ??????# ??????????????# #####??????????? | | ??????# ???????????????####### #??????????????? | | ?????? ?????????????????????# ?????????????? | | ????? #??????????????????????#####????????????? | +----------------------------------------------------+ Best States ------------- Heat Dissipation 25 Energy Generation 10 Energy Capacity 250 Matter Stores 300 Matter Capacity 300 Sight Range 16 Terrain Scan Range 14 Terrain Scan Density 85 Evasion (%) 42 Item Schematics ----------------- None Robot Schematics ------------------ None Fabricated ------------ Nothing Alien Tech Used ----------------- None Achievements -------------- None Challenges ------------ None Game ------ Seed ShadeCouplerMeganuke Manual? 0 Play Time 00:13:37 Cumulative 23.3 hours Start 2020.10.28 @ 16:57:52 End 2020.10.28 @ 17:09:45 Sessions 1 Manual Loads 0 Difficulty Rogue Special Mode None Game No. 48 Rogue 48 Adventurer 0 Explorer 0 Win Type - Total 0 Types 0/0/0/0/0/0/0/0/0 Lore% 20 Gallery% 28 Achievement% 24 Wizard Run 0 Options --------- ASCII 0 Keyboard 0 Movement Mouse Keybinds 0 Fullscreen 2 Font 24/Smallcaps Map View 76x50 Tactical HUD 1 Map Filters NONE Filters NONE Steam X RUN: 7d66afbf-8ed6-42ca-9159-903e2d077290